fUSD/lending_fUSD_20240625
["ID","MTS","AMOUNT","RATE_DAILY","PERIOD"]
[330414364,1719354654979,-7776.46,0.0002,2]
[330414365,1719354654988,-500.0,0.0002,2]
[330414366,1719354654997,-500.0,0.0002,2]
[330414367,1719354655007,-500.0,0.0002,2]
[330414368,1719354655019,-500.0,0.0002,2]
[330414369,1719354655029,-500.0,0.0002,2]
[330414370,1719354655038,-500.0,0.0002,2]
[330414371,1719354655048,-500.0,0.0002,2]
[330414372,1719354655057,-500.0,0.0002,2]
[330414373,1719354655066,-500.0,0.0002,2]
[330414374,1719354655076,-500.0,0.0002,2]
[330414375,1719354655085,-313.82024585,0.0002,2]
[330414376,1719354655096,-500.0,0.0002,2]
[330414377,1719354655106,-701.22,0.0002,2]
[330414378,1719354655115,-500.0,0.0002,2]
[330414379,1719354655124,-500.0,0.0002,2]
[330414380,1719354655134,-500.0,0.0002,2]
[330414381,1719354655143,-500.0,0.0002,2]
[330414382,1719354655153,-500.0,0.0002,2]
[330414383,1719354655162,-500.0,0.0002,2]
[330414384,1719354655172,-851.0,0.0002,2]
[330414385,1719354655181,-500.0,0.0002,2]
[330414386,1719354655190,-500.0,0.0002,2]
[330414387,1719354655200,-502.6,0.0002,2]
[330414388,1719354655210,-871.96,0.0002,2]
[330414389,1719354655220,-374.58860874,0.0002,2]
[330414390,1719354655230,-500.0,0.0002,2]
[330414391,1719354655239,-500.0,0.0002,2]
[330414392,1719354655249,-500.0,0.0002,2]
[330414393,1719354655259,-1682.11,0.0002,2]
[330414394,1719354655270,-500.0,0.0002,2]
[330414395,1719354655279,-500.0,0.0002,2]
[330414396,1719354655289,-500.0,0.0002,2]
[330414397,1719354655299,-521.23,0.0002,2]
[330414398,1719354655308,-500.0,0.0002,2]
[330414399,1719354655317,-500.0,0.0002,2]
[330414400,1719354655327,-500.0,0.0002,2]
[330414401,1719354655336,-500.0,0.0002,2]
[330414402,1719354655346,-683.33,0.0002,2]
[330414403,1719354655355,-1049.37,0.0002,2]
[330414404,1719354655365,-578.98,0.0002,2]
[330414405,1719354655374,-500.0,0.0002,2]
[330414406,1719354655383,-500.0,0.0002,2]
[330414407,1719354655392,-500.0,0.0002,2]
[330414408,1719354655402,-500.0,0.0002,2]
[330414409,1719354655412,-500.0,0.0002,2]
[330414410,1719354655422,-662.04,0.0002,2]
[330414411,1719354655431,-850.42,0.0002,2]
[330414412,1719354655442,-500.0,0.0002,2]
[330414413,1719354655451,-839.43,0.0002,2]
[330414414,1719354655461,-500.0,0.0002,2]
[330414415,1719354655471,-669.55,0.0002,2]
[330414416,1719354655480,-649.29,0.0002,2]
[330414417,1719354655489,-500.0,0.0002,2]
[330414418,1719354655499,-508.91,0.0002,2]
[330414419,1719354655509,-1422.23,0.0002,2]
[330414420,1719354655520,-500.0,0.0002,2]
[330414421,1719354655531,-504.02,0.0002,2]
[330414422,1719354655540,-500.0,0.0002,2]
[330414423,1719354655549,-500.0,0.0002,2]
[330414424,1719354655559,-500.0,0.0002,2]
[330414425,1719354655568,-812.45,0.0002,2]
[330414426,1719354655578,-954.51,0.0002,2]
[330414427,1719354655588,-500.0,0.0002,2]
[330414428,1719354655598,-719.52,0.0002,2]
[330414429,1719354655608,-522.8,0.0002,2]
[330414430,1719354655621,-382.62,0.0002,2]
[330414431,1719354655632,-500.0,0.0002,2]
[330414432,1719354655641,-500.0,0.0002,2]
[330414433,1719354655650,-500.0,0.0002,2]
[330414434,1719354655660,-500.0,0.0002,2]
[330414435,1719354655669,-500.0,0.0002,2]
[330414436,1719354655679,-500.0,0.0002,2]
[330414437,1719354655689,-500.0,0.0002,2]
[330414438,1719354655701,-500.0,0.0002,2]
[330414439,1719354655712,-648.91,0.0002,2]
[330414440,1719354655721,-173.72494725,0.0002,2]
[330414441,1719354655730,-500.0,0.0002,2]
[330414442,1719354655740,-673.84,0.0002,2]
[330414443,1719354655750,-602.7,0.0002,2]
[330414444,1719354655760,-604.51,0.0002,2]
[330414445,1719354655771,-1690.08,0.0002,2]
[330414446,1719354655780,-636.05,0.0002,2]
[330414447,1719354655791,-500.0,0.0002,2]
[330414448,1719354655801,-500.0,0.0002,2]
[330414449,1719354655810,-855.62,0.0002,2]
[330414450,1719354655820,-329.33061421,0.0002,2]
[330414451,1719354655830,-500.0,0.0002,2]
[330414452,1719354655840,-500.0,0.0002,2]
[330414453,1719354655850,-500.0,0.0002,2]
[330414454,1719354655860,-533.23,0.0002,2]
[330414455,1719354655869,-500.0,0.0002,2]
[330414456,1719354655880,-500.0,0.0002,2]
[330414457,1719354655890,-500.0,0.0002,2]
[330414458,1719354655899,-1313.99,0.0002,2]
[330414459,1719354655908,-500.0,0.0002,2]
[330414460,1719354655918,-500.0,0.0002,2]
[330414461,1719354655928,-895.99,0.0002,2]
[330414462,1719354655937,-785.27,0.0002,2]
[330414463,1719354655947,-500.0,0.0002,2]
[330414464,1719354655956,-500.0,0.0002,2]
[330414465,1719354655965,-500.0,0.0002,2]
[330414466,1719354655975,-500.0,0.0002,2]
[330414467,1719354655985,-639.30363021,0.0002,2]
[330414468,1719354655996,-500.0,0.0002,2]
[330414469,1719354656006,-500.0,0.0002,2]
[330414470,1719354656015,-1462.95,0.0002,2]
[330414471,1719354656024,-500.0,0.0002,2]
[330414472,1719354656034,-1444.4,0.0002,2]
[330414473,1719354656044,-500.0,0.0002,2]
[330414474,1719354656053,-500.0,0.0002,2]
[330414475,1719354656062,-500.0,0.0002,2]
[330414476,1719354656072,-534.36,0.0002,2]
[330414477,1719354656082,-518.41,0.0002,2]
[330414478,1719354656092,-500.0,0.0002,2]
[330414479,1719354656102,-500.0,0.0002,2]
[330414480,1719354656111,-500.0,0.0002,2]
[330414481,1719354656120,-656.28,0.0002,2]
[330414482,1719354656130,-500.0,0.0002,2]
[330414483,1719354656139,-588.19,0.0002,2]
[330414484,1719354656148,-500.0,0.0002,2]
[330414485,1719354656157,-619.04,0.0002,2]
[330414486,1719354656168,-500.0,0.0002,2]
[330414487,1719354656177,-500.0,0.0002,2]
[330414488,1719354656187,-630.91,0.0002,2]
[330414489,1719354656196,-552.49,0.0002,2]
[330414490,1719354656205,-500.0,0.0002,2]
[330414491,1719354656215,-500.0,0.0002,2]
[330414492,1719354656224,-699.0,0.0002,2]
[330414493,1719354656233,-500.0,0.0002,2]
[330414494,1719354656242,-500.0,0.0002,2]
[330414495,1719354656252,-832.63,0.0002,2]
[330414496,1719354656262,-500.0,0.0002,2]
[330414497,1719354656272,-667.38,0.0002,2]
[330414498,1719354656282,-500.0,0.0002,2]
[330414499,1719354656291,-500.0,0.0002,2]
[330414500,1719354656300,-500.0,0.0002,2]
[330414501,1719354656309,-407.20411981,0.0002,2]
[330414502,1719354656319,-500.0,0.0002,2]
[330414503,1719354656328,-500.0,0.0002,2]
[330414504,1719354656338,-904.74,0.0002,2]
[330414505,1719354656347,-1980.36,0.0002,2]
[330414506,1719354656356,-932.71,0.0002,2]
[330414507,1719354656365,-500.0,0.0002,2]
[330414508,1719354656375,-500.0,0.0002,2]
[330414509,1719354656384,-500.0,0.0002,2]
[330414510,1719354656393,-500.0,0.0002,2]
[330414511,1719354656402,-500.0,0.0002,2]
[330414512,1719354656411,-804.77,0.0002,2]
[330414513,1719354656420,-500.0,0.0002,2]
[330414514,1719354656430,-500.0,0.0002,2]
[330414515,1719354656439,-500.0,0.0002,2]
[330414516,1719354656448,-633.57,0.0002,2]
[330414517,1719354656459,-857.64,0.0002,2]
[330414518,1719354656470,-718.77,0.0002,2]
[330414519,1719354656479,-787.53,0.0002,2]
[330414520,1719354656489,-1040.76,0.0002,2]
[330414521,1719354656500,-500.0,0.0002,2]
[330414522,1719354656510,-500.0,0.0002,2]
[330414523,1719354656520,-500.0,0.0002,2]
[330414524,1719354656532,-500.0,0.0002,2]
[330414525,1719354656541,-1075.47,0.0002,2]
[330414526,1719354656551,-564.0,0.0002,2]
[330414527,1719354656561,-503.64,0.0002,2]
[330414528,1719354656570,-672.44,0.0002,2]
[330414529,1719354656580,-500.0,0.0002,2]
[330414530,1719354656589,-500.0,0.0002,2]
[330414531,1719354656599,-500.0,0.0002,2]
[330414532,1719354656609,-895.35,0.0002,2]
[330414533,1719354656624,-500.0,0.0002,2]
[330414534,1719354656634,-567.91,0.0002,2]
[330414535,1719354656644,-500.0,0.0002,2]
[330414536,1719354656653,-500.0,0.0002,2]
[330414537,1719354656665,-921.81,0.0002,2]
[330414538,1719354656674,-500.0,0.0002,2]
[330414539,1719354656684,-781.14,0.0002,2]
[330414540,1719354656694,-662.24,0.0002,2]
[330414541,1719354656704,-500.0,0.0002,2]
[330414542,1719354656714,-801.2,0.0002,2]
[330414543,1719354656724,-500.0,0.0002,2]
[330414544,1719354656851,-976.51,0.0002,2]
[330414545,1719354656861,-516.17,0.0002,2]
[330414546,1719354656871,-670.72,0.0002,2]
[330414547,1719354656881,-500.0,0.0002,2]
[330414548,1719354656890,-500.0,0.0002,2]
[330414549,1719354656900,-1350.56,0.0002,2]
[330414550,1719354656910,-500.0,0.0002,2]
[330414551,1719354656920,-500.0,0.0002,2]
[330414552,1719354656929,-635.08,0.0002,2]
[330414553,1719354656939,-500.0,0.0002,2]
[330414554,1719354656949,-500.0,0.0002,2]
[330414555,1719354656958,-849.6,0.0002,2]
[330414556,1719354656968,-1215.97,0.0002,2]
[330414557,1719354656977,-35.60042395,0.0002,2]
[330414558,1719354845140,1223.58816666,0.000118,2]
[330414559,1719354853092,10246.62833678,0.00011,2]
[330414563,1719355034931,287.66371493,0.0002509,120]
[330414565,1719355089959,157.062607,0.00025,61]
[330414566,1719355091814,157.062607,0.00025,61]
[330414567,1719355092554,157.062607,0.00025,61]
[330414568,1719355099192,157.062607,0.00025,61]
[330414569,1719355100009,157.062607,0.00025,61]
[330414570,1719355102622,157.062607,0.00025,62]
[330414571,1719355103373,157.062607,0.00025,62]
[330414572,1719355104080,157.062607,0.00025,62]
[330414573,1719355104712,157.062607,0.00025,62]
[330414574,1719355105307,157.062607,0.00025,62]
[330414575,1719355108425,157.062607,0.00025,63]
[330414576,1719355108870,157.062607,0.00025,63]
[330414577,1719355109545,157.062607,0.00025,63]
[330414578,1719355110224,157.062607,0.00025,63]
[330414579,1719355110893,157.062607,0.00025,63]
[330414580,1719355113864,157.062607,0.00025,64]
[330414581,1719355114600,157.062607,0.00025,64]
[330414582,1719355115287,157.062607,0.00025,64]
[330414583,1719355116109,157.062607,0.00025,64]
[330414584,1719355116754,157.062607,0.00025,64]
[330414585,1719355120830,157.062607,0.00025,65]
[330414586,1719355121583,157.062607,0.00025,65]
[330414587,1719355122504,157.062607,0.00025,65]
[330414588,1719355123204,157.062607,0.00025,65]
[330414589,1719355123925,157.062607,0.00025,65]
[330414591,1719355128736,157.062607,0.00025,68]
[330414592,1719355129686,157.062607,0.00025,68]
[330414593,1719355130388,157.062607,0.00025,68]
[330414594,1719355131048,157.062607,0.00025,68]
[330414595,1719355131783,157.062607,0.00025,68]
[330414596,1719355133779,157.062607,0.00025,68]
[330414597,1719355134570,157.062607,0.00025,68]
[330414598,1719355140406,157.062607,0.00025,69]
[330414599,1719355141120,157.062607,0.00025,69]
[330414600,1719355141715,157.062607,0.00025,69]
[330414601,1719355142440,157.062607,0.00025,69]
[330414602,1719355142925,157.062607,0.00025,69]
[330414603,1719355143478,157.062607,0.00025,69]
[330414604,1719355144130,157.062607,0.00025,69]
[330414605,1719355148758,157.062607,0.00025,70]
[330414606,1719355149623,157.062607,0.00025,70]
[330414607,1719355150391,157.062607,0.00025,70]
[330414608,1719355151949,157.062607,0.00025,70]
[330414609,1719355152169,157.062607,0.00025,70]
[330414610,1719355152319,157.062607,0.00025,70]
[330414611,1719355152692,157.062607,0.00025,70]
[330414612,1719355156843,157.062607,0.00025,71]
[330414613,1719355157535,157.062607,0.00025,71]
[330414614,1719355158159,157.062607,0.00025,71]
[330414615,1719355158842,157.062607,0.00025,71]
[330414616,1719355159551,157.062607,0.00025,71]
[330414617,1719355160160,157.062607,0.00025,71]
[330414618,1719355160833,157.062607,0.00025,71]
[330414619,1719355164841,157.062607,0.00025,72]
[330414620,1719355165612,157.062607,0.00025,72]
[330414621,1719355166273,157.062607,0.00025,72]
[330414622,1719355166925,157.062607,0.00025,72]
[330414623,1719355167564,157.062607,0.00025,72]
[330414624,1719355168230,157.062607,0.00025,72]
[330414625,1719355168889,157.062607,0.00025,72]
[330414626,1719355175385,157.062607,0.00025,75]
[330414627,1719355176130,157.062607,0.00025,75]
[330414628,1719355176774,157.062607,0.00025,75]
[330414629,1719355177534,157.062607,0.00025,75]
[330414630,1719355178999,157.062607,0.00025,75]
[330414631,1719355179671,157.062607,0.00025,75]
[330414632,1719355180170,157.062607,0.00025,75]
[330414634,1719355183200,157.062607,0.00025,76]
[330414635,1719355183923,157.062607,0.00025,76]
[330414636,1719355184562,157.062607,0.00025,76]
[330414637,1719355185166,157.062607,0.00025,76]
[330414638,1719355185879,157.062607,0.00025,76]
[330414639,1719355186502,157.062607,0.00025,76]
[330414640,1719355187110,157.062607,0.00025,76]
[330414641,1719355191119,157.062607,0.00025,77]
[330414642,1719355191785,157.062607,0.00025,77]
[330414643,1719355192636,157.062607,0.00025,77]
[330414644,1719355193158,157.062607,0.00025,77]
[330414645,1719355193756,157.062607,0.00025,77]
[330414646,1719355194394,157.062607,0.00025,77]
[330414647,1719355194977,157.062607,0.00025,77]
[330414648,1719355198220,157.062607,0.00025,78]
[330414649,1719355198992,157.062607,0.00025,78]
[330414650,1719355199599,157.062607,0.00025,78]
[330414651,1719355200374,157.062607,0.00025,78]
[330414652,1719355200860,157.062607,0.00025,78]
[330414654,1719355201459,157.062607,0.00025,78]
[330414655,1719355202733,157.062607,0.00025,78]
[330414656,1719355206512,157.062607,0.00025,79]
[330414657,1719355207237,157.062607,0.00025,79]
[330414658,1719355207821,157.062607,0.00025,79]
[330414659,1719355208449,157.062607,0.00025,79]
[330414660,1719355209051,157.062607,0.00025,79]
[330414661,1719355209661,157.062607,0.00025,79]
[330414662,1719355210281,157.062607,0.00025,79]
[330414684,1719355832713,-160.15578634,0.00018031,2]
[330414685,1719355832722,-250.0,0.00018231,2]
[330414686,1719355832732,-95.27518742,0.0001826,2]
[330414687,1719355832743,-904.72481258,0.0001826,2]
[330414688,1719355832752,-168.38,0.00018277,2]
[330414689,1719355832762,-250.0,0.00018301,2]
[330414690,1719355832771,-763.2,0.00018334,2]
[330414691,1719355832781,-32273.57409822,0.00018887,3]
[330414693,1719355832904,-911.07205506,0.00018887,3]
[330414694,1719355832913,-426.26,0.00018887,2]
[330414695,1719355832923,-165.65,0.000189,2]
[330414696,1719355832932,-722.35029396,0.00018977,2]
[330414697,1719355832942,-1214.73771525,0.00018978,2]
[330414698,1719355832952,-649.5499432,0.00018978,2]
[330414699,1719355832960,-3016.49013005,0.00018978,2]
[330414700,1719355832972,-446.17024212,0.00018978,2]
[330414701,1719355832983,-566.55211337,0.00018978,2]
[330414708,1719355833138,-1057.3,0.00018978,2]
[330414711,1719355839623,-674.52,0.00016396,2]
[330414712,1719355839635,-674.52,0.0001866,2]
[330414713,1719355839648,-3786.20233459,0.00018978,2]
[330414714,1719355839662,-4886.7500001,0.00018978,2]
[330414715,1719355839677,-603.9086485,0.00018978,2]
[330414717,1719355840547,-6221.499,0.00018978,2]
[330414723,1719355840745,-918.99432185,0.00018978,2]
[330414724,1719355840759,-770.54761456,0.00018978,2]
[330414725,1719355840774,-96360.61629486,0.00018978,2]
[330414726,1719355840787,-2500.0,0.00019078,2]
[330414727,1719355840799,-155.0,0.00019177,2]
[330414728,1719355840810,-2431.11,0.00019178,2]
[330414729,1719355840822,-2629.29,0.00019178,2]
[330414730,1719355840834,-500.0,0.00019178,2]
[330414731,1719355840847,-500.0,0.00019178,2]
[330414732,1719355840858,-500.0,0.00019178,2]
[330414733,1719355840870,-500.0,0.00019178,2]
[330414734,1719355840881,-500.0,0.00019178,2]
[330414735,1719355840892,-500.0,0.00019178,2]
[330414736,1719355840903,-1103.61,0.00019178,2]
[330414737,1719355840915,-500.0,0.00019178,2]
[330414738,1719355840927,-500.0,0.00019178,2]
[330414739,1719355840939,-500.0,0.00019178,2]
[330414740,1719355840950,-500.0,0.00019178,2]
[330414741,1719355840962,-530.05,0.00019178,2]
[330414742,1719355840973,-500.0,0.00019178,2]
[330414743,1719355840985,-500.0,0.00019178,2]
[330414744,1719355840996,-725.46,0.00019178,2]
[330414745,1719355841013,-649.90343472,0.00019178,2]
[330414746,1719355841023,-500.0,0.00019178,2]
[330414747,1719355841035,-500.0,0.00019178,2]
[330414748,1719355841047,-500.0,0.00019178,2]
[330414749,1719355841059,-500.0,0.00019178,2]
[330414750,1719355841070,-500.0,0.00019178,2]
[330414751,1719355841082,-500.0,0.00019178,2]
[330414752,1719355841093,-500.0,0.00019178,2]
[330414753,1719355841104,-500.0,0.00019178,2]
[330414754,1719355841115,-500.0,0.00019178,2]
[330414755,1719355841126,-1445.85,0.00019178,2]
[330414756,1719355841136,-500.0,0.00019178,2]
[330414757,1719355841148,-693.86,0.00019178,2]
[330414758,1719355841159,-556.15,0.00019178,2]
[330414759,1719355841170,-500.0,0.00019178,2]
[330414760,1719355841182,-500.0,0.00019178,2]
[330414761,1719355841193,-500.0,0.00019178,2]
[330414762,1719355841204,-500.0,0.00019178,2]
[330414763,1719355841215,-500.0,0.00019178,2]
[330414764,1719355841226,-1167.72,0.00019178,2]
[330414765,1719355841237,-411.19926041,0.00019178,2]
[330414766,1719355841250,-258.073122,0.00019178,2]
[330414767,1719355841270,-500.0,0.00019178,2]
[330414768,1719355841281,-500.0,0.00019178,2]
[330414769,1719355841294,-500.0,0.00019178,2]
[330414770,1719355841307,-500.0,0.00019178,2]
[330414771,1719355841319,-237.51382504,0.00019178,2]
[330414772,1719355841332,-214.49472983,0.00019178,2]
[330414773,1719355841344,-595.75,0.00019178,2]
[330414774,1719355841355,-650.95,0.00019178,2]
[330414775,1719355841366,-500.0,0.00019178,2]
[330414776,1719355841376,-500.0,0.00019178,2]
[330414777,1719355841389,-500.0,0.00019178,2]
[330414778,1719355841401,-529.23,0.00019178,2]
[330414779,1719355841412,-500.0,0.00019178,2]
[330414780,1719355841426,-500.0,0.00019178,2]
[330414781,1719355841437,-500.0,0.00019178,2]
[330414782,1719355841449,-500.0,0.00019178,2]
[330414783,1719355841461,-1587.64,0.00019178,2]
[330414784,1719355841473,-500.0,0.00019178,2]
[330414785,1719355841485,-500.0,0.00019178,2]
[330414786,1719355841496,-500.0,0.00019178,2]
[330414787,1719355841509,-500.0,0.00019178,2]
[330414788,1719355841522,-972.95,0.00019178,2]
[330414789,1719355841534,-500.0,0.00019178,2]
[330414790,1719355841545,-500.0,0.00019178,2]
[330414791,1719355841556,-500.0,0.00019178,2]
[330414792,1719355841567,-500.0,0.00019178,2]
[330414793,1719355841578,-1029.84,0.00019178,2]
[330414794,1719355841588,-500.0,0.00019178,2]
[330414795,1719355841601,-500.0,0.00019178,2]
[330414796,1719355841611,-393.54163113,0.00019178,2]
[330414797,1719355841622,-500.0,0.00019178,2]
[330414798,1719355841633,-500.0,0.00019178,2]
[330414799,1719355841645,-963.6,0.00019178,2]
[330414800,1719355841658,-500.0,0.00019178,2]
[330414801,1719355841669,-500.0,0.00019178,2]
[330414802,1719355841680,-541.08,0.00019178,2]
[330414803,1719355841692,-500.0,0.00019178,2]
[330414804,1719355841702,-726.63,0.00019178,2]
[330414805,1719355841722,-500.0,0.00019178,2]
[330414806,1719355841735,-535.19,0.00019178,2]
[330414807,1719355841747,-500.0,0.00019178,2]
[330414808,1719355841761,-500.0,0.00019178,2]
[330414809,1719355841772,-1962.17483201,0.00019178,2]
[330414842,1719355844730,-335.3713174,0.00019178,2]
[330414844,1719355846703,-673.47385059,0.00019178,2]
[330414845,1719355846715,-353.37380688,0.00019178,2]
[330414847,1719355846754,-146.62619312,0.00019178,2]
[330414848,1719355846765,-500.0,0.00019178,2]
[330414849,1719355846776,-500.0,0.00019178,2]
[330414850,1719355846786,-503.76,0.00019178,2]
[330414851,1719355846797,-569.44,0.00019178,2]
[330414852,1719355846808,-500.0,0.00019178,2]
[330414853,1719355846819,-500.0,0.00019178,2]
[330414854,1719355846830,-12343.14,0.00019178,2]
[330414855,1719355846841,-500.0,0.00019178,2]
[330414856,1719355846852,-718.11,0.00019178,2]
[330414857,1719355846862,-562.95,0.00019178,2]
[330414858,1719355846873,-500.0,0.00019178,2]
[330414859,1719355846883,-500.0,0.00019178,2]
[330414860,1719355846894,-708.68,0.00019178,2]
[330414861,1719355846904,-1185.19,0.00019178,2]
[330414862,1719355846915,-500.0,0.00019178,2]
[330414863,1719355846928,-500.0,0.00019178,2]
[330414864,1719355846940,-500.0,0.00019178,2]
[330414865,1719355846951,-599.6,0.00019178,2]
[330414866,1719355846961,-500.0,0.00019178,2]
[330414867,1719355846972,-677.04,0.00019178,2]
[330414868,1719355846983,-500.0,0.00019178,2]
[330414869,1719355846994,-500.0,0.00019178,2]
[330414870,1719355847008,-500.0,0.00019178,2]
[330414871,1719355847020,-502.25,0.00019178,2]
[330414872,1719355847030,-540.76,0.00019178,2]
[330414873,1719355847041,-500.0,0.00019178,2]
[330414874,1719355847052,-561.53,0.00019178,2]
[330414875,1719355847063,-500.0,0.00019178,2]
[330414876,1719355847073,-500.0,0.00019178,2]
[330414877,1719355847085,-500.0,0.00019178,2]
[330414878,1719355847095,-1129.61,0.00019178,2]
[330414879,1719355847107,-777.26,0.00019178,2]
[330414880,1719355847117,-699.53,0.00019178,2]
[330414881,1719355847128,-505.05,0.00019178,2]
[330414882,1719355847138,-1094.99,0.00019178,2]
[330414883,1719355847149,-500.0,0.00019178,2]
[330414884,1719355847159,-562.15,0.00019178,2]
[330414885,1719355847170,-500.0,0.00019178,2]
[330414886,1719355847181,-500.0,0.00019178,2]
[330414887,1719355847191,-654.39,0.00019178,2]
[330414888,1719355847202,-500.0,0.00019178,2]
[330414889,1719355847212,-500.0,0.00019178,2]
[330414890,1719355847223,-746.66,0.00019178,2]
[330414891,1719355847234,-867.3,0.00019178,2]
[330414892,1719355847244,-500.0,0.00019178,2]
[330414893,1719355847255,-500.0,0.00019178,2]
[330414894,1719355847266,-500.0,0.00019178,2]
[330414895,1719355847276,-500.0,0.00019178,2]
[330414896,1719355847286,-500.0,0.00019178,2]
[330414897,1719355847298,-1203.67,0.00019178,2]
[330414898,1719355847308,-500.0,0.00019178,2]
[330414899,1719355847320,-503.32,0.00019178,2]
[330414901,1719355847330,-500.0,0.00019178,2]
[330414903,1719355847340,-500.0,0.00019178,2]
[330414905,1719355847350,-500.0,0.00019178,2]
[330414907,1719355847360,-500.0,0.00019178,2]
[330414910,1719355847992,-527.98,0.00019178,2]
[330414911,1719355848022,-884.67,0.00019178,2]
[330414912,1719355848045,-515.86,0.00019178,2]
[330414913,1719355848068,-500.0,0.00019178,2]
[330414914,1719355848085,-500.0,0.00019178,2]
[330414915,1719355848096,-500.0,0.00019178,2]
[330414916,1719355848106,-237.83231434,0.00019178,2]
[330414917,1719355848212,-262.16768566,0.00019178,2]
[330414918,1719355848222,-436.06796512,0.00019178,2]
[330414921,1719356175443,151.062707,0.00025,61]
[330414922,1719356176771,151.062707,0.00025,61]
[330414923,1719356177338,151.062707,0.00025,61]
[330414924,1719356177897,151.062707,0.00025,61]
[330414925,1719356180961,151.062707,0.00025,62]
[330414926,1719356181494,151.062707,0.00025,62]
[330414927,1719356181940,151.062707,0.00025,62]
[330414928,1719356182446,151.062707,0.00025,62]
[330414929,1719356185518,151.062707,0.00025,63]
[330414930,1719356186062,151.062707,0.00025,63]
[330414931,1719356186508,151.062707,0.00025,63]
[330414932,1719356187014,151.062707,0.00025,63]
[330414933,1719356191152,151.062707,0.00025,64]
[330414934,1719356191236,151.062707,0.00025,64]
[330414935,1719356191633,151.062707,0.00025,64]
[330414936,1719356192144,151.062707,0.00025,64]
[330414937,1719356195855,151.062707,0.00025,65]
[330414938,1719356196081,151.062707,0.00025,65]
[330414939,1719356196417,151.062707,0.00025,65]
[330414940,1719356196948,151.062707,0.00025,65]
[330414941,1719356200870,151.062707,0.00025,68]
[330414942,1719356201402,151.062707,0.00025,68]
[330414943,1719356201875,151.062707,0.00025,68]
[330414944,1719356202779,151.062707,0.00025,68]
[330414945,1719356203723,151.062707,0.00025,68]
[330414946,1719356207785,151.062707,0.00025,69]
[330414947,1719356208120,151.062707,0.00025,69]
[330414948,1719356208549,151.062707,0.00025,69]